bitfinex/quotes_SOLUSD_20250714
["timestamp","ask_amount","ask_price","bid_price","bid_amount"]
[1752526938224,91.30949294,162.78,162.77,0.03]
[1752526946545,53.75205427,162.78,162.77,0.03]
[1752526946853,91.30949294,162.78,162.77,0.03]
[1752526951822,90.60949294,162.78,162.77,0.03]
[1752526952027,33.38949294,162.78,162.77,0.74]
[1752526952235,64.60949294,162.78,162.77,0.74]
[1752526953316,64.60949294,162.78,162.77,0.03]
[1752526955244,64.60949294,162.78,162.77,0.74]
[1752526957321,65.28949294,162.78,162.77,0.03]
[1752526961156,58.27205427,162.78,162.77,0.74]
[1752526961354,64.60949294,162.78,162.77,0.74]
[1752526961556,27.2462321,162.78,162.77,0.74]
[1752526961764,54.34212264,162.78,162.77,0.74]
[1752526962073,60.48538348,162.78,162.77,0.74]
[1752526962237,54.34212264,162.78,162.77,0.74]
[1752526963036,60.48538348,162.78,162.77,0.74]
[1752526963431,64.6219193,162.78,162.77,0.74]
[1752526963630,60.48538348,162.78,162.77,0.74]
[1752526964447,60.48538348,162.78,162.77,0.03]
[1752526964651,64.62221957,162.78,162.77,0.03]
[1752526966440,60.48538348,162.78,162.77,0.03]
[1752526966637,64.62230252,162.78,162.77,0.03]
[1752526966835,58.47904168,162.78,162.77,0.03]
[1752526967031,58.47904168,162.78,162.77,0.74]
[1752526967341,37.55743867,162.78,162.77,0.74]
[1752526968863,37.55743867,162.78,162.77,0.03]
[1752526969651,37.55743867,162.78,162.77,0.74]
[1752526972766,31.22,162.78,162.77,0.74]
[1752526972947,31.22,162.78,162.77,6.88363826]
[1752526973146,31.22,162.78,162.77,0.74]
[1752526976060,0.06,162.81,162.77,13.22107693]
[1752526976257,0.06,162.81,162.8,6.33743867]
[1752526976745,0.06,162.81,162.8,7.00743867]
[1752526977868,0.06,162.81,162.8,13.14994481]
[1752526978668,0.06,162.81,162.8,6.81250614]
[1752526978971,0.06,162.81,162.8,13.14994481]
[1752526979472,147.96,162.81,162.8,13.14994481]
[1752526979672,0.06,162.81,162.8,21.08088348]
[1752526979849,0.06,162.81,162.8,27.90193409]
[1752526980370,31.22,162.86,162.8,43.25819944]
[1752526980562,31.22,162.86,162.85,6.33743867]
[1752526980755,31.22,162.86,162.8,29.9133221]
[1752526980963,31.22,162.86,162.81,7.00743867]
[1752526980964,6.33743867,162.85,162.81,7.00743867]
[1752526981154,31.22,162.86,162.82,0.67]
[1752526981155,37.55743867,162.86,162.82,0.67]
[1752526981770,7.02743867,162.85,162.82,0.67]
[1752526981973,37.53743867,162.84,162.8,6.81250614]
[1752526982150,37.53743867,162.84,162.81,0.67]
[1752526982962,37.53743867,162.84,162.82,0.67]
[1752526983161,37.53743867,162.84,162.81,0.67]
[1752526984268,31.2,162.84,162.82,0.67]
[1752526987381,7.02743867,162.83,162.79,0.67]
[1752526987592,6.33743867,162.8,162.77,0.7]
[1752526987776,31.2,162.79,162.77,0.7]
[1752526988080,6.33743867,162.78,162.77,0.03]
[1752526988379,7.02743867,162.78,162.77,0.03]
[1752526988558,6.33743867,162.78,162.77,0.03]
[1752526989251,37.53743867,162.79,162.77,0.7]
[1752526991069,43.68032692,162.79,162.77,0.03]
[1752526991381,6.33743867,162.78,162.77,0.03]
[1752526991876,7.02743867,162.78,162.77,0.03]
[1752526993673,177.85538348,162.78,162.77,0.03]
[1752526997300,29.95538348,162.78,162.77,0.03]
[1752526997594,22.92794481,162.78,162.77,0.03]
[1752526997774,29.26538348,162.78,162.77,0.03]
[1752526999599,22.92794481,162.78,162.77,0.03]
[1752526999775,29.26538348,162.78,162.77,0.03]
[1752527000193,29.95538348,162.78,162.77,0.03]
[1752527000987,34.53845035,162.78,162.77,0.03]
[1752527001796,38.66222616,162.78,162.77,0.03]
[1752527003100,49.12212264,162.76,162.75,0.03]
[1752527003400,84.90518951,162.76,162.75,0.03]
[1752527003603,85.61518951,162.76,162.75,0.03]
[1752527005093,85.42176656,162.76,162.75,0.03]
[1752527005401,86.46613836,162.76,162.75,0.03]
[1752527007478,31.2,162.76,162.75,0.74]
[1752527008895,37.34401572,162.76,162.75,0.74]
[1752527009996,31.2,162.76,162.75,0.74]
[1752527019903,31.2,162.76,162.75,0.03]
[1752527022113,31.2,162.76,162.75,0.74]
[1752527022908,31.2,162.76,162.75,7.07743867]
[1752527023416,31.2,162.76,162.75,0.74]
[1752527023797,31.2,162.76,162.75,7.07743867]
[1752527024403,31.2,162.76,162.75,0.74]
[1752527029899,31.2,162.76,162.75,0.03]
[1752527030995,37.53743867,162.76,162.75,0.03]
[1752527031289,43.68145439,162.76,162.75,0.03]
[1752527032717,31.2,162.76,162.75,0.03]
[1752527035605,31.87,162.76,162.75,0.03]
[1752527036203,31.2,162.76,162.75,0.03]
[1752527041413,31.2,162.76,162.75,0.71]
[1752527041613,31.2,162.76,162.75,0.03]
[1752527042024,31.2,162.76,162.75,0.71]
[1752527047843,0.06,162.77,162.75,0.71]
[1752527048021,31.24,162.77,162.75,0.71]
[1752527048732,31.24,162.77,162.76,0.68]
[1752527049916,31.24,162.77,162.75,0.03]
[1752527050126,31.24,162.77,162.75,0.71]
[1752527051217,31.24,162.77,162.76,0.68]
[1752527051423,35.84209838,162.77,162.76,0.68]
[1752527051625,31.24,162.77,162.76,0.68]
[1752527052043,31.24,162.77,162.75,7.04743867]
[1752527053650,31.24,162.77,162.75,0.71]
[1752527053821,37.38363907,162.77,162.75,0.03]
[1752527054020,11.6099718,162.76,162.75,0.03]
[1752527055032,11.60993225,162.76,162.75,0.03]
[1752527055229,28.39461622,162.76,162.75,0.03]
[1752527055438,32.53721453,162.76,162.75,0.03]
[1752527055738,38.68123025,162.76,162.75,0.03]
[1752527056338,26.19977586,162.76,162.75,0.03]
[1752527056718,32.34379158,162.76,162.75,0.03]
[1752527058141,27.741298,162.76,162.75,0.03]
[1752527058448,23.59869969,162.76,162.75,0.03]
[1752527058617,32.34184715,162.76,162.75,0.03]
[1752527058817,23.59869969,162.76,162.75,0.03]
[1752527060540,0.06,162.77,162.75,7.04743867]
[1752527060737,0.06,162.77,162.76,33.63184024]
[1752527061631,0.06,162.77,162.76,27.29440157]
[1752527061836,0.06,162.77,162.76,33.63184024]
[1752527062237,0.06,162.77,162.76,39.77585596]
[1752527063636,0.06,162.77,162.76,26.0]
[1752527063848,0.75,162.77,162.76,26.0]
[1752527064030,0.06,162.77,162.76,32.33743867]
[1752527064230,0.06,162.77,162.76,33.00743867]
[1752527064430,0.06,162.77,162.76,39.15145439]
[1752527064824,0.06,162.77,162.76,26.67]
[1752527065042,0.06,162.77,162.76,33.00743867]
[1752527065744,0.75,162.77,162.75,0.03]
[1752527065931,0.06,162.77,162.76,6.33743867]
[1752527066129,0.06,162.77,162.75,7.03743867]
[1752527066328,0.06,162.77,162.75,6.36743867]
[1752527066735,0.75,162.77,162.75,0.03]
[1752527069348,0.06,162.77,162.75,0.03]
[1752527069532,0.06,162.77,162.75,0.7]
[1752527069734,0.06,162.77,162.76,7.00743867]
[1752527071051,0.06,162.77,162.76,13.15145439]
[1752527071227,0.06,162.77,162.76,13.76585596]
[1752527072959,0.06,162.77,162.76,41.27665596]
[1752527073658,0.06,162.77,162.76,34.93921729]
[1752527073955,0.06,162.77,162.76,41.27665596]
[1752527074156,0.06,162.77,162.76,15.27665596]
[1752527075442,0.06,162.77,162.76,25.27665596]
[1752527076259,0.06,162.77,162.76,15.27665596]
[1752527076762,0.06,162.77,162.76,25.27665596]
[1752527077346,0.06,162.77,162.76,15.27665596]
[1752527077543,0.06,162.77,162.76,25.27665596]
[1752527078264,0.06,162.77,162.76,15.27665596]
[1752527078563,0.06,162.77,162.76,25.27665596]
[1752527079459,0.06,162.77,162.76,42.06133993]
[1752527079660,147.96,162.84,162.79,26.0]
[1752527079869,147.96,162.84,162.83,6.33743867]
[1752527080961,147.96,162.84,162.83,7.00743867]
[1752527081762,147.96,162.84,162.83,6.33743867]
[1752527083850,148.65,162.84,162.83,6.33743867]
[1752527084255,148.65,162.84,162.82,6.33743867]
[1752527084461,0.69,162.83,162.79,26.0]
[1752527084655,0.69,162.83,162.78,6.33743867]
[1752527084656,7.02743867,162.83,162.78,6.33743867]
[1752527084869,0.69,162.82,162.78,6.33743867]
[1752527085253,0.69,162.81,162.78,6.33743867]
[1752527085454,12.47886435,162.83,162.78,6.33743867]
[1752527085777,0.69,162.8,162.78,6.33743867]
[1752527086871,0.69,162.79,162.75,7.03743867]
[1752527087647,0.69,162.78,162.75,6.36743867]
[1752527087854,7.02743867,162.78,162.75,0.03]
[1752527088058,0.69,162.77,162.75,0.03]
[1752527091960,0.69,162.79,162.75,7.03743867]
[1752527092146,0.69,162.78,162.75,7.03743867]
[1752527093752,0.69,162.78,162.75,6.36743867]
[1752527093971,0.71,162.77,162.75,0.03]
[1752527095475,0.71,162.79,162.76,6.33743867]
[1752527095778,179.77,162.81,162.77,7.01743867]
[1752527095964,0.71,162.8,162.77,6.33743867]
[1752527096464,0.71,162.79,162.77,6.33743867]
[1752527096778,0.71,162.78,162.75,0.03]
[1752527097280,0.71,162.77,162.75,0.03]
[1752527097776,6.85369547,162.77,162.75,0.03]
[1752527098175,6.14369547,162.77,162.75,0.03]
[1752527098373,0.71,162.76,162.75,0.03]
[1752527098677,7.04743867,162.76,162.75,0.03]
[1752527099656,13.19145439,162.76,162.75,0.03]
[1752527100269,154.04388501,162.77,162.75,0.03]
[1752527100574,0.71,162.76,162.75,0.03]
[1752527101472,7.04743867,162.76,162.75,0.03]
[1752527101658,13.19145439,162.76,162.75,0.03]
[1752527103277,44.35145439,162.76,162.75,0.03]
[1752527104075,45.91155439,162.76,162.75,0.03]
[1752527106386,44.35145439,162.76,162.75,0.03]
[1752527108671,38.01401572,162.76,162.75,0.03]
[1752527109664,0.06,162.77,162.75,0.03]
[1752527109866,31.24,162.77,162.75,7.04743867]
[1752527110383,31.24,162.77,162.75,0.71]
[1752527111695,37.3836706,162.77,162.75,0.03]
[1752527111872,38.0936706,162.77,162.75,0.03]
[1752527113281,0.71,162.76,162.75,0.03]
[1752527114178,13.19145439,162.76,162.75,0.03]
[1752527116591,29.97613836,162.76,162.75,0.03]
[1752527123992,6.14401572,162.76,162.75,0.03]
[1752527124500,31.24,162.77,162.75,0.03]
[1752527125582,6.20376453,162.77,162.75,0.03]
[1752527125897,31.18,162.76,162.75,0.03]
[1752527126597,38.22743867,162.76,162.75,0.03]
[1752527127803,44.37145439,162.76,162.75,0.03]
[1752527128795,37.32401572,162.76,162.75,0.03]
[1752527129387,44.37145439,162.76,162.75,0.03]
[1752527131604,61.15613836,162.76,162.75,0.03]
[1752527131905,69.87796119,162.76,162.75,0.03]
[1752527133586,87.53400729,162.76,162.7,0.03]
[1752527133909,6.33743867,162.72,162.7,0.03]
[1752527134110,31.18,162.71,162.7,0.03]
[1752527134285,37.51743867,162.71,162.7,0.03]
[1752527134480,31.18,162.71,162.7,0.03]
[1752527135713,31.18,162.71,162.7,0.71]
[1752527137200,31.18,162.71,162.7,0.03]
[1752527138096,32.14472329,162.76,162.7,0.71]
[1752527138097,12.48229441,162.74,162.7,0.71]
[1752527138302,31.18,162.73,162.71,0.68]
[1752527139219,31.18,162.73,162.72,0.68]
[1752527140400,31.18,162.74,162.72,0.68]
[1752527140631,147.9,162.75,162.73,6.33743867]
[1752527140796,147.9,162.75,162.74,7.01743867]
[1752527140990,31.24,162.77,162.74,7.01743867]
[1752527141191,31.24,162.77,162.75,0.68]
[1752527141390,31.24,162.77,162.73,6.33743867]
[1752527141609,31.24,162.77,162.74,13.16220089]
[1752527141815,31.24,162.77,162.75,7.01743867]
[1752527141985,31.24,162.77,162.75,6.33743867]
[1752527142191,31.24,162.77,162.76,0.68]
[1752527143294,0.06,162.77,162.76,7.01743867]
[1752527143788,0.06,162.77,162.76,13.16145439]
[1752527146814,0.06,162.77,162.76,15.38155596]
[1752527155140,0.72,162.82,162.76,30.74159528]
[1752527155443,179.06,162.83,162.8,6.33743867]
[1752527155841,179.78,162.83,162.8,6.33743867]
[1752527156435,179.78,162.83,162.8,12.47982102]
[1752527156944,0.72,162.82,162.8,12.47982102]
[1752527157142,0.72,162.82,162.79,12.48023093]
[1752527158234,0.72,162.82,162.8,6.33743867]
[1752527158848,0.72,162.82,162.8,12.47990852]
[1752527159052,0.72,162.81,162.79,6.33743867]
[1752527159751,0.72,162.82,162.79,6.33743867]
[1752527160127,0.72,162.82,162.79,7.05743867]
[1752527161054,179.78,162.83,162.8,12.47994481]
[1752527161528,179.06,162.83,162.82,6.33743867]
[1752527161857,147.9,162.83,162.82,7.05743867]
[1752527162930,147.9,162.83,162.82,13.19919029]
[1752527165659,148.62,162.83,162.79,6.33743867]
[1752527165834,6.33743867,162.81,162.76,0.72]
[1752527166159,0.72,162.8,162.76,7.05743867]
[1752527166330,0.72,162.8,162.77,7.05743867]
[1752527166832,0.72,162.8,162.78,6.14326084]
[1752527168048,0.72,162.8,162.77,13.20093105]
[1752527168446,0.72,162.8,162.77,12.48093105]
[1752527169249,31.86,162.79,162.75,6.17439324]
[1752527169437,0.72,162.78,162.75,12.51183191]
[1752527169746,0.72,162.78,162.75,13.23183191]
[1752527170547,31.14,162.79,162.76,6.33743867]
[1752527170738,31.14,162.79,162.76,7.05743867]
[1752527170933,31.14,162.79,162.77,0.72]
[1752527171456,31.14,162.79,162.77,13.200899]
[1752527171835,179.04,162.82,162.78,7.05743867]
[1752527172049,179.04,162.82,162.79,6.33743867]
[1752527172252,179.04,162.82,162.79,7.05743867]
[1752527172455,179.76,162.82,162.79,7.05743867]
[1752527172653,179.76,162.82,162.78,6.33743867]
[1752527172826,179.76,162.82,162.78,13.20034801]
[1752527173340,7.05743867,162.81,162.76,12.48145439]
[1752527173529,0.72,162.8,162.77,6.33743867]
[1752527173732,185.37743867,162.82,162.77,6.33743867]
[1752527173951,0.72,162.81,162.78,7.05743867]
[1752527174152,0.72,162.8,162.78,6.33743867]
[1752527174452,0.72,162.8,162.77,6.33743867]
[1752527174851,38.19743867,162.8,162.75,6.36743867]
[1752527175040,7.05743867,162.79,162.75,0.03]
[1752527175443,37.47743867,162.78,162.75,0.03]
[1752527175643,38.19743867,162.78,162.75,0.03]
[1752527175850,0.72,162.77,162.75,0.03]
[1752527176227,0.72,162.76,162.75,0.03]
[1752527178458,31.86,162.76,162.75,0.03]
[1752527180756,31.14,162.76,162.75,0.03]
[1752527181237,31.86,162.76,162.75,0.03]
[1752527184333,147.9,162.79,162.75,7.05743867]
[1752527184543,148.59,162.79,162.75,6.86437498]
[1752527184745,0.69,162.78,162.76,6.33743867]
[1752527186159,148.59,162.79,162.76,6.33743867]
[1752527186555,148.59,162.79,162.77,6.33743867]
[1752527190265,148.59,162.79,162.76,6.14400661]
[1752527190460,148.59,162.79,162.77,6.33743867]
[1752527191648,0.69,162.78,162.77,6.33743867]
[1752527192239,0.69,162.78,162.75,6.36743867]
[1752527192445,31.83,162.78,162.75,6.36743867]
[1752527192765,0.69,162.77,162.75,0.03]
[1752527193352,0.69,162.76,162.75,0.03]
[1752527193665,31.83,162.76,162.75,0.03]
[1752527194057,179.73,162.76,162.75,0.03]
[1752527194261,192.21145439,162.76,162.75,0.03]
[1752527194964,185.87401572,162.76,162.75,0.03]
[1752527196372,179.04,162.76,162.75,6.36743867]
[1752527196860,179.04,162.76,162.75,0.03]
[1752527197068,192.21145439,162.76,162.75,0.03]
[1752527197366,208.99613836,162.76,162.75,0.03]
[1752527198473,61.09613836,162.76,162.75,0.03]
[1752527207979,54.75869969,162.76,162.75,0.03]
[1752527208281,61.09613836,162.76,162.75,0.03]
[1752527208882,54.06869969,162.76,162.75,0.03]
[1752527209086,61.09613836,162.76,162.75,0.03]
[1752527209772,54.75869969,162.76,162.75,0.03]
[1752527210177,54.06869969,162.76,162.75,0.03]
[1752527211382,54.75869969,162.76,162.75,0.03]
[1752527212080,54.06869969,162.76,162.75,0.03]
[1752527212282,61.09613836,162.76,162.75,0.03]
[1752527213269,16.78468397,162.75,162.7,0.03]
[1752527213585,23.12212264,162.71,162.7,0.03]
[1752527213763,54.28212264,162.71,162.7,0.03]
[1752527213968,54.94212264,162.71,162.7,0.03]
[1752527214273,61.08802639,162.71,162.7,0.03]
[1752527217178,67.69152639,162.71,162.62,0.7]
[1752527217478,26.0,162.63,162.59,0.7]
[1752527217676,31.16,162.62,162.59,7.03743867]
[1752527217877,31.16,162.61,162.6,0.7]
[1752527218083,31.16,162.61,162.6,7.03743867]
[1752527218297,31.16,162.62,162.6,13.18718312]
[1752527218518,31.16,162.62,162.6,6.84974445]
[1752527218695,31.16,162.62,162.61,0.7]
[1752527219010,31.16,162.63,162.61,7.03743867]
[1752527219306,31.16,162.64,162.62,7.03743867]
[1752527219474,31.16,162.64,162.63,0.73]
[1752527219995,31.16,162.64,162.63,7.06743867]
[1752527220188,31.16,162.64,162.63,0.73]
[1752527221587,31.16,162.64,162.63,0.03]
[1752527224610,31.82,162.64,162.63,0.03]
[1752527224909,44.30598761,162.64,162.63,0.03]
[1752527225402,47.94468397,162.64,162.63,0.03]
[1752527225584,31.16,162.64,162.63,0.03]
[1752527225787,54.94212264,162.64,162.63,0.03]
[1752527225990,61.09067158,162.64,162.63,0.03]
[1752527232800,26.66,162.66,162.63,0.03]
[1752527233003,26.0,162.64,162.63,0.03]
[1752527234295,61.15039901,162.65,162.63,0.73]
[1752527234296,31.22,162.65,162.63,0.73]
[1752527234499,31.22,162.65,162.63,7.06743867]
[1752527234693,31.22,162.65,162.64,0.7]
[1752527236192,31.22,162.65,162.63,6.36743867]
[1752527236401,31.22,162.65,162.63,7.06743867]
[1752527237096,26.0,162.68,162.64,7.03743867]
[1752527237295,31.22,162.67,162.65,0.7]
[1752527238098,31.22,162.67,162.66,0.7]
[1752527238493,31.22,162.67,162.64,12.48595071]
[1752527238814,31.22,162.66,162.64,7.03743867]
[1752527239496,31.22,162.66,162.63,6.17880926]
[1752527239497,6.99743867,162.65,162.63,0.03]
[1752527239686,37.55743867,162.64,162.63,0.03]
[1752527239891,31.22,162.64,162.63,0.03]
[1752527240793,31.88,162.64,162.63,0.03]
[1752527241521,44.36598761,162.64,162.63,0.03]
[1752527243422,38.21743867,162.64,162.63,0.03]
[1752527243620,31.22,162.64,162.63,0.03]
[1752527244722,44.35598761,162.64,162.63,0.03]
[1752527244925,61.14067158,162.64,162.63,0.03]
[1752527246306,54.80323291,162.64,162.63,0.03]
[1752527246624,61.14067158,162.64,162.63,0.03]
[1752527249522,48.00468397,162.64,162.63,0.03]
[1752527249738,48.00468397,162.64,162.63,0.68]
[1752527250034,31.22,162.64,162.63,0.68]
[1752527250411,16.78468397,162.66,162.63,0.68]
[1752527250618,31.2,162.65,162.63,0.68]
[1752527250808,31.2,162.65,162.64,6.33743867]
[1752527251121,147.9,162.69,162.64,13.13598761]
[1752527251321,147.9,162.68,162.65,2.2004]
[1752527251521,147.9,162.68,162.67,6.33743867]
[1752527251715,147.9,162.68,162.67,6.98743867]
[1752527251920,147.9,162.73,162.67,6.98743867]
[1752527252124,147.9,162.73,162.66,6.1984]
[1752527252125,31.22,162.72,162.7,6.33743867]
[1752527252304,31.22,162.72,162.7,6.98743867]
[1752527254114,31.22,162.72,162.71,0.65]
[1752527257335,31.22,162.72,162.71,6.98743867]
[1752527257625,31.22,162.72,162.71,13.13334242]
[1752527257823,16.84468397,162.77,162.71,13.13334242]
[1752527258015,16.84468397,162.77,162.73,6.33743867]
[1752527258016,31.2,162.76,162.73,6.33743867]
[1752527258204,31.2,162.76,162.74,0.65]
[1752527258605,31.2,162.76,162.73,6.33743867]
[1752527258929,31.2,162.76,162.73,0.65]
[1752527261120,31.2,162.76,162.74,0.65]
[1752527261514,31.2,162.76,162.75,0.65]
[1752527261930,31.2,162.76,162.73,6.98743867]
[1752527262129,31.2,162.76,162.74,0.65]
[1752527266420,179.1,162.76,162.74,0.65]
[1752527267948,186.08743867,162.76,162.72,0.65]
[1752527268123,192.23170155,162.76,162.72,0.65]
[1752527268325,185.89426288,162.76,162.72,0.65]
[1752527271124,179.1,162.76,162.73,0.65]
[1752527271330,179.1,162.76,162.74,0.65]
[1752527275054,179.1,162.76,162.75,0.7]
[1752527275520,179.1,162.76,162.74,6.14472181]
[1752527275715,179.1,162.76,162.74,6.84472181]
[1752527276143,179.1,162.76,162.74,6.14472181]
[1752527276344,179.1,162.76,162.75,0.7]
[1752527276533,179.1,162.76,162.73,6.14507401]
[1752527276721,0.66,162.75,162.71,0.7]
[1752527276927,31.16,162.74,162.71,0.7]
[1752527277116,31.16,162.74,162.69,0.73]
[1752527277446,0.66,162.73,162.69,0.73]
[1752527277745,31.82,162.72,162.69,0.73]
[1752527277935,31.16,162.71,162.69,6.87661041]
[1752527278342,31.16,162.71,162.69,0.73]
[1752527278940,31.16,162.71,162.69,6.87664552]
[1752527279347,31.16,162.71,162.69,0.73]
[1752527281026,31.82,162.71,162.69,0.03]
[1752527281929,0.66,162.7,162.69,0.03]
[1752527283839,148.56,162.7,162.69,0.03]
[1752527285645,154.70628149,162.7,162.69,0.03]
[1752527286026,23.59096546,162.7,162.69,0.03]
[1752527287031,26.0,162.71,162.69,0.03]
[1752527287230,16.86643547,162.75,162.69,0.03]
[1752527287231,31.18,162.7,162.69,0.03]
[1752527291356,0.66,162.71,162.69,0.03]
[1752527291547,31.86,162.71,162.69,0.03]
[1752527292054,31.2,162.71,162.69,0.03]
[1752527292240,31.2,162.71,162.69,0.73]
[1752527292434,2.1647,162.75,162.7,0.7]
[1752527292659,26.66,162.74,162.71,0.7]
[1752527292955,31.2,162.73,162.71,0.7]
[1752527293158,31.2,162.73,162.72,0.7]
[1752527293742,0.06,162.76,162.72,0.7]
[1752527294067,147.9,162.74,162.73,6.1451484]
[1752527294279,147.9,162.74,162.73,6.8451484]
[1752527297352,179.1,162.74,162.71,0.7]
[1752527297550,179.1,162.74,162.7,6.14613838]
[1752527297551,179.76,162.74,162.7,6.14613838]
[1752527297748,179.76,162.74,162.7,6.84613838]
[1752527298542,179.1,162.74,162.71,0.7]
[1752527299072,147.9,162.74,162.71,0.7]
[1752527299367,147.9,162.74,162.72,6.14552605]
[1752527299663,147.9,162.74,162.73,0.7]
[1752527300645,179.76,162.74,162.71,6.14581309]
[1752527300850,179.76,162.74,162.71,6.84581309]
[1752527301666,179.76,162.74,162.71,6.14581309]
[1752527302268,179.1,162.74,162.71,6.84581309]
[1752527302662,179.76,162.74,162.71,6.84581309]
[1752527303467,179.1,162.74,162.71,6.84581309]
[1752527303670,179.82,162.74,162.71,6.14581309]
[1752527304165,179.1,162.74,162.71,6.80581309]
[1752527304550,179.1,162.74,162.72,0.66]
[1752527304970,147.9,162.74,162.73,0.66]
[1752527305473,147.9,162.74,162.73,6.8051484]
[1752527305782,147.9,162.74,162.73,6.1451484]
[1752527306078,147.96,162.74,162.73,6.1451484]
[1752527306789,147.96,162.74,162.73,6.8051484]
[1752527309372,147.96,162.74,162.73,6.1451484]
[1752527311076,179.88,162.74,162.7,6.14628149]
[1752527311273,179.88,162.74,162.7,6.80628149]
[1752527311574,0.72,162.73,162.7,6.80628149]
[1752527314471,0.72,162.73,162.7,6.14628149]
[1752527315064,0.72,162.73,162.7,6.80628149]
[1752527316480,31.18,162.72,162.7,6.14628149]
[1752527316854,31.18,162.72,162.7,0.66]
[1752527317255,31.18,162.72,162.69,6.83665929]
[1752527317674,31.18,162.72,162.69,6.17665929]
[1752527317880,31.18,162.72,162.7,0.66]
[1752527318879,31.18,162.72,162.7,6.80590575]
[1752527320381,31.18,162.73,162.7,6.14590575]
[1752527320675,179.14,162.74,162.71,0.66]
[1752527321292,147.96,162.74,162.72,6.14552605]
[1752527321464,147.96,162.74,162.73,0.66]
[1752527323276,147.96,162.74,162.73,6.8051484]
[1752527325575,0.06,162.74,162.73,6.8051484]
[1752527328861,0.06,162.74,162.73,8.4598484]
[1752527329082,0.06,162.74,162.73,9.07436324]
[1752527335014,0.06,162.74,162.73,40.23436324]
[1752527336993,0.06,162.74,162.73,57.01904721]
[1752527340418,0.73,162.74,162.69,0.03]
[1752527340781,0.06,162.74,162.69,6.85664699]
[1752527340987,0.67,162.73,162.69,0.71]
[1752527341308,0.67,162.72,162.69,0.03]
[1752527342108,26.0,162.71,162.69,0.03]
[1752527342429,6.14628149,162.7,162.69,0.03]
[1752527342925,6.81628149,162.7,162.69,0.03]
[1752527343218,0.67,162.7,162.69,0.03]
[1752527343433,0.67,162.72,162.69,0.71]
[1752527343593,32.87480808,162.74,162.69,0.71]
[1752527343798,0.67,162.73,162.69,0.71]
[1752527344922,0.67,162.73,162.69,6.85664862]
[1752527345126,0.67,162.73,162.69,0.71]
[1752527345302,0.67,162.72,162.69,0.71]
[1752527346324,0.67,162.72,162.69,6.85664268]
[1752527346527,32.20480808,162.74,162.69,6.85664268]
[1752527346703,0.67,162.73,162.69,0.71]
[1752527347134,0.67,162.72,162.69,0.71]
[1752527349600,32.87480808,162.74,162.69,6.17661911]
[1752527349814,0.67,162.73,162.69,0.71]
[1752527350039,0.67,162.72,162.69,0.71]
[1752527350239,0.73,162.72,162.69,0.71]
[1752527350819,0.67,162.71,162.69,0.03]
[1752527351328,0.73,162.72,162.69,0.03]
[1752527351537,0.67,162.71,162.69,0.03]
[1752527353841,6.14628149,162.7,162.69,0.03]
[1752527354514,6.81628149,162.7,162.69,0.03]